fUST/lending_fUST_20240803
["ID","MTS","AMOUNT","RATE_DAILY","PERIOD"]
[334030954,1722694246815,-314.848175,0.00014707,2]
[334030955,1722694246825,-151.0,0.00014707,2]
[334030956,1722694246836,-151.0,0.00014707,2]
[334030957,1722694246846,-35293.564523,0.00014784,2]
[334030958,1722694246856,-151.0,0.00014784,2]
[334030959,1722694246865,-151.0,0.00014784,2]
[334030960,1722694246874,-151.0,0.00014784,2]
[334030961,1722694246884,-152.225328,0.00014784,2]
[334030962,1722694246893,-151.0,0.00014784,2]
[334030963,1722694246902,-152.225328,0.00014784,2]
[334030964,1722694246914,-151.0,0.00014784,2]
[334030965,1722694246925,-151.0,0.00014784,2]
[334030966,1722694246935,-500.0,0.00014793,2]
[334030967,1722694246944,-500.0,0.00014793,2]
[334030968,1722694246955,-563.39,0.00014794,2]
[334030969,1722694246964,-151.0,0.00014794,2]
[334030970,1722694246973,-500.0,0.00014794,2]
[334030971,1722694246983,-500.0,0.00014794,2]
[334030972,1722694246995,-707.53,0.00014794,2]
[334030973,1722694247006,-500.0,0.00014794,2]
[334030974,1722694247017,-151.0,0.00014794,2]
[334030975,1722694247028,-151.0,0.00014794,2]
[334030976,1722694247038,-161.19293525,0.00014794,2]
[334030977,1722694247047,-500.0,0.00014794,2]
[334030978,1722694247057,-554.35,0.00014794,2]
[334030979,1722694247068,-1394.8,0.00014794,2]
[334030980,1722694247078,-500.0,0.00014794,2]
[334030981,1722694247088,-500.0,0.00014794,2]
[334030982,1722694247097,-500.0,0.00014794,2]
[334030983,1722694247107,-500.0,0.00014794,2]
[334030984,1722694247119,-805.23,0.00014794,2]
[334030985,1722694247128,-500.0,0.00014794,2]
[334030986,1722694247141,-854.56,0.00014794,2]
[334030987,1722694247152,-569.81,0.00014794,2]
[334030988,1722694247162,-500.0,0.00014794,2]
[334030989,1722694247172,-1213.24,0.00014794,2]
[334030990,1722694247183,-500.0,0.00014794,2]
[334030991,1722694247193,-755.86,0.00014794,2]
[334030992,1722694247205,-500.0,0.00014794,2]
[334030993,1722694247216,-652.65,0.00014794,2]
[334030994,1722694247228,-500.0,0.00014794,2]
[334030995,1722694247239,-500.0,0.00014794,2]
[334030996,1722694247249,-500.0,0.00014794,2]
[334030997,1722694247259,-167.522877,0.00014794,2]
[334030998,1722694247268,-167.522877,0.00014794,2]
[334030999,1722694247277,-151.0,0.00014794,2]
[334031000,1722694247287,-251.745722,0.00014794,2]
[334031001,1722694247297,-1817.88,0.00014794,2]
[334031002,1722694247306,-2142.55,0.00014794,2]
[334031003,1722694247316,-836.1,0.00014794,2]
[334031004,1722694247325,-500.0,0.00014794,2]
[334031005,1722694247335,-500.0,0.00014794,2]
[334031006,1722694247344,-6046.23,0.00014794,2]
[334031007,1722694247354,-500.0,0.00014794,2]
[334031008,1722694247363,-314.848175,0.00014794,2]
[334031009,1722694247373,-1797.07,0.00014794,2]
[334031010,1722694247383,-500.0,0.00014794,2]
[334031011,1722694247393,-314.848175,0.00014794,2]
[334031012,1722694247402,-500.0,0.00014794,2]
[334031013,1722694247411,-4906.58,0.00014794,2]
[334031014,1722694247421,-500.0,0.00014794,2]
[334031015,1722694247430,-500.0,0.00014794,2]
[334031016,1722694247439,-500.0,0.00014794,2]
[334031017,1722694247452,-2316.24,0.00014794,2]
[334031018,1722694247462,-151.0,0.00014794,2]
[334031019,1722694247471,-557.51,0.00014794,2]
[334031020,1722694247482,-1124.48,0.00014794,2]
[334031021,1722694247491,-503.3,0.00014794,2]
[334031022,1722694247501,-500.0,0.00014794,2]
[334031023,1722694247510,-809.45,0.00014794,2]
[334031024,1722694247520,-500.0,0.00014794,2]
[334031025,1722694247529,-500.0,0.00014794,2]
[334031026,1722694247538,-500.0,0.00014794,2]
[334031027,1722694247547,-500.0,0.00014794,2]
[334031028,1722694247556,-1803.75,0.00014794,2]
[334031029,1722694247566,-500.0,0.00014794,2]
[334031030,1722694247575,-1639.53,0.00014794,2]
[334031031,1722694247585,-953.84,0.00014794,2]
[334031032,1722694247594,-741.87,0.00014794,2]
[334031033,1722694247603,-645.15,0.00014794,2]
[334031034,1722694247614,-5565.24,0.00014794,2]
[334031035,1722694247623,-500.0,0.00014794,2]
[334031036,1722694247633,-228.79232837,0.00014794,2]
[334031037,1722694247643,-500.0,0.00014794,2]
[334031038,1722694247652,-1443.44,0.00014794,2]
[334031039,1722694247661,-500.0,0.00014794,2]
[334031040,1722694247671,-500.0,0.00014794,2]
[334031041,1722694247680,-500.0,0.00014794,2]
[334031042,1722694247690,-500.0,0.00014794,2]
[334031043,1722694247700,-3697.92,0.00014794,2]
[334031044,1722694247709,-2194.66,0.00014794,2]
[334031045,1722694247718,-757.17,0.00014794,2]
[334031046,1722694247728,-500.0,0.00014794,2]
[334031047,1722694247737,-710.84,0.00014794,2]
[334031048,1722694247748,-500.0,0.00014794,2]
[334031049,1722694247758,-855.36,0.00014794,2]
[334031050,1722694247767,-500.0,0.00014794,2]
[334031051,1722694247776,-500.0,0.00014794,2]
[334031052,1722694247786,-554.27,0.00014794,2]
[334031053,1722694247795,-861.98,0.00014794,2]
[334031054,1722694247805,-500.0,0.00014794,2]
[334031055,1722694247816,-1336.22,0.00014794,2]
[334031056,1722694247827,-760.81,0.00014794,2]
[334031057,1722694247838,-500.0,0.00014794,2]
[334031058,1722694247847,-500.0,0.00014794,2]
[334031059,1722694247857,-513.87,0.00014794,2]
[334031060,1722694247866,-915.32,0.00014794,2]
[334031061,1722694247876,-1058.63,0.00014794,2]
[334031062,1722694247885,-923.41,0.00014794,2]
[334031063,1722694247895,-2001.02,0.00014794,2]
[334031064,1722694247905,-556.77,0.00014794,2]
[334031065,1722694247918,-972.87,0.00014794,2]
[334031066,1722694247927,-1428.65,0.00014794,2]
[334031067,1722694247936,-169.131638,0.0001495,2]
[334031068,1722694247945,-951.65187642,0.00015,2]
[334031069,1722694247954,-154.76012181,0.00015,2]
[334031070,1722694247966,-2439.11818978,0.00015024,2]
[334031071,1722694247975,-500.0,0.00015057,2]
[334031072,1722694247984,-17646.7822615,0.00015058,2]
[334031073,1722694247995,-500.0,0.00015067,2]
[334031074,1722694248005,-500.0,0.00015067,2]
[334031075,1722694248015,-563.39,0.00015068,2]
[334031076,1722694248025,-151.0,0.00015068,2]
[334031077,1722694248034,-500.0,0.00015068,2]
[334031078,1722694248044,-707.53,0.00015068,2]
[334031079,1722694248053,-500.0,0.00015068,2]
[334031080,1722694248062,-151.0,0.00015068,2]
[334031081,1722694248072,-500.0,0.00015068,2]
[334031082,1722694248082,-554.35,0.00015068,2]
[334031083,1722694248092,-1394.8,0.00015068,2]
[334031084,1722694248101,-500.0,0.00015068,2]
[334031085,1722694248111,-151.0,0.00015068,2]
[334031086,1722694248120,-500.0,0.00015068,2]
[334031087,1722694248129,-151.0,0.00015068,2]
[334031088,1722694248139,-500.0,0.00015068,2]
[334031089,1722694248148,-500.0,0.00015068,2]
[334031090,1722694248158,-805.23,0.00015068,2]
[334031091,1722694248167,-419.49,0.00015068,2]
[334031092,1722694248177,-854.56,0.00015068,2]
[334031093,1722694248187,-151.0,0.00015068,2]
[334031094,1722694248196,-152.225328,0.00015068,2]
[334031095,1722694248206,-569.81,0.00015068,2]
[334031096,1722694248216,-203.678352,0.00015068,2]
[334031097,1722694248225,-152.225328,0.00015068,2]
[334031098,1722694248235,-500.0,0.00015068,2]
[334031099,1722694248244,-151.0,0.00015068,2]
[334031100,1722694248328,-1213.24,0.00015068,2]
[334031101,1722694248341,-381.80122198,0.00015068,2]
[334031102,1722694248350,-755.86,0.00015068,2]
[334031103,1722694248360,-500.0,0.00015068,2]
[334031104,1722694248369,-652.65,0.00015068,2]
[334031105,1722694248378,-500.0,0.00015068,2]
[334031106,1722694248388,-500.0,0.00015068,2]
[334031107,1722694248397,-500.0,0.00015068,2]
[334031108,1722694248407,-167.522877,0.00015068,2]
[334031109,1722694248416,-167.522877,0.00015068,2]
[334031110,1722694248426,-151.0,0.00015068,2]
[334031111,1722694248436,-1817.88,0.00015068,2]
[334031112,1722694248445,-2142.55,0.00015068,2]
[334031113,1722694248454,-836.1,0.00015068,2]
[334031114,1722694248463,-500.0,0.00015068,2]
[334031115,1722694248473,-500.0,0.00015068,2]
[334031116,1722694248482,-151.0,0.00015068,2]
[334031117,1722694248492,-6046.23,0.00015068,2]
[334031118,1722694248502,-640.71948204,0.00015068,2]
[334031119,1722694248511,-314.848175,0.00015068,2]
[334031120,1722694248521,-1797.07,0.00015068,2]
[334031121,1722694248531,-500.0,0.00015068,2]
[334031122,1722694248540,-314.848175,0.00015068,2]
[334031123,1722694248549,-500.0,0.00015068,2]
[334031124,1722694248558,-4906.58,0.00015068,2]
[334031125,1722694248568,-500.0,0.00015068,2]
[334031126,1722694248577,-500.0,0.00015068,2]
[334031127,1722694248587,-500.0,0.00015068,2]
[334031128,1722694248596,-2316.24,0.00015068,2]
[334031129,1722694248605,-151.0,0.00015068,2]
[334031130,1722694248614,-557.51,0.00015068,2]
[334031131,1722694248624,-1124.48,0.00015068,2]
[334031132,1722694248634,-503.3,0.00015068,2]
[334031133,1722694248643,-500.0,0.00015068,2]
[334031134,1722694248652,-809.45,0.00015068,2]
[334031135,1722694248662,-500.0,0.00015068,2]
[334031136,1722694248671,-500.0,0.00015068,2]
[334031137,1722694248681,-500.0,0.00015068,2]
[334031138,1722694248690,-500.0,0.00015068,2]
[334031139,1722694248700,-1803.75,0.00015068,2]
[334031140,1722694248709,-500.0,0.00015068,2]
[334031141,1722694248719,-1639.53,0.00015068,2]
[334031142,1722694248729,-953.84,0.00015068,2]
[334031143,1722694248738,-741.87,0.00015068,2]
[334031144,1722694248747,-645.15,0.00015068,2]
[334031145,1722694248757,-5565.24,0.00015068,2]
[334031146,1722694248766,-500.0,0.00015068,2]
[334031147,1722694248775,-500.0,0.00015068,2]
[334031148,1722694248795,-1443.44,0.00015068,2]
[334031149,1722694248807,-500.0,0.00015068,2]
[334031150,1722694248817,-500.0,0.00015068,2]
[334031151,1722694248827,-577.96555564,0.00015068,2]
[334031152,1722694248838,-3697.92,0.00015068,2]
[334031153,1722694248848,-2194.66,0.00015068,2]
[334031154,1722694248858,-757.17,0.00015068,2]
[334031155,1722694248868,-500.0,0.00015068,2]
[334031156,1722694248878,-710.84,0.00015068,2]
[334031157,1722694248888,-500.0,0.00015068,2]
[334031158,1722694248898,-855.36,0.00015068,2]
[334031159,1722694248908,-500.0,0.00015068,2]
[334031160,1722694248923,-351.8112578,0.00015068,2]
[334031161,1722694248932,-554.27,0.00015068,2]
[334031162,1722694248943,-861.98,0.00015068,2]
[334031163,1722694248952,-500.0,0.00015068,2]
[334031164,1722694248963,-1336.22,0.00015068,2]
[334031165,1722694248973,-760.81,0.00015068,2]
[334031166,1722694248984,-500.0,0.00015068,2]
[334031167,1722694248994,-500.0,0.00015068,2]
[334031168,1722694249004,-513.87,0.00015068,2]
[334031169,1722694249015,-915.32,0.00015068,2]
[334031170,1722694249025,-1058.63,0.00015068,2]
[334031171,1722694249035,-923.41,0.00015068,2]
[334031172,1722694249046,-2001.02,0.00015068,2]
[334031173,1722694249056,-556.77,0.00015068,2]
[334031174,1722694249066,-972.87,0.00015068,2]
[334031175,1722694249085,-1428.65,0.00015068,2]
[334031176,1722694249104,-35.57852382,0.00015284,2]
[334031177,1722694831228,197.0,0.0001002,2]
[334031178,1722694911418,1492.55194249,0.0001002,2]
[334031179,1722694924140,1390.76533243,0.0001002,2]
[334031184,1722695210193,-190.90493287,0.00010958,2]
[334031271,1722695438955,-300.0,0.00010958,2]
[334031272,1722695438965,-300.0,0.00010958,2]
[334031274,1722695438974,-611.38,0.00010959,2]
[334031276,1722695438984,-509.48,0.00010959,2]
[334031278,1722695438994,-424.57,0.00010959,2]
[334031280,1722695439003,-353.8,0.00010959,2]
[334031282,1722695439013,-294.84,0.00010959,2]
[334031283,1722695439023,-245.7,0.00010959,2]
[334031285,1722695439032,-204.75,0.00010959,2]
[334031287,1722695439043,-170.62,0.00010959,2]
[334031289,1722695439053,-853.14,0.00010959,2]
[334031290,1722695439066,-24900.0,0.00011534,2]
[334031292,1722695439076,-250.0,0.00011843,2]
[334031294,1722695439086,-250.0,0.00011875,2]
[334031295,1722695439095,-250.0,0.00011908,2]
[334031296,1722695439104,-250.0,0.0001194,2]
[334031297,1722695439114,-250.0,0.00011973,2]
[334031298,1722695439123,-250.0,0.00012005,2]
[334031299,1722695439133,-250.0,0.00012038,2]
[334031300,1722695439143,-420.0,0.00012054,2]
[334031301,1722695439155,-250.0,0.0001207,2]
[334031302,1722695439164,-250.0,0.00012103,2]
[334031303,1722695439174,-250.0,0.00012135,2]
[334031304,1722695439184,-250.0,0.00012168,2]
[334031305,1722695439195,-250.0,0.000122,2]
[334031306,1722695439204,-250.0,0.00012233,2]
[334031307,1722695439214,-250.0,0.00012265,2]
[334031308,1722695439223,-250.0,0.00012298,2]
[334031309,1722695439234,-250.0,0.0001233,2]
[334031310,1722695439244,-250.0,0.00012363,2]
[334031311,1722695439255,-250.0,0.00012395,2]
[334031312,1722695439264,-250.0,0.00012428,2]
[334031313,1722695439274,-250.0,0.0001246,2]
[334031314,1722695439284,-206.79520963,0.00012813,2]
[334031315,1722695439294,-166.909615,0.00012986,2]
[334031316,1722695439306,-587.0,0.00013259,2]
[334031317,1722695439318,-82031.07424747,0.00013686,2]
[334031318,1722695439331,-4657.27673119,0.00013688,2]
[334031319,1722695439340,-19393.0185003,0.00013688,2]
[334031320,1722695439349,-500.0,0.00013697,2]
[334031321,1722695439359,-500.0,0.00013697,2]
[334031322,1722695439368,-500.0,0.00013698,2]
[334031323,1722695439378,-381.80122198,0.00013698,2]
[334031324,1722695439387,-598.39,0.00013698,2]
[334031325,1722695439397,-500.0,0.00013698,2]
[334031326,1722695439408,-500.0,0.00013698,2]
[334031327,1722695439417,-500.0,0.00013698,2]
[334031328,1722695439426,-1162.33,0.00013698,2]
[334031329,1722695439436,-500.0,0.00013698,2]
[334031330,1722695439445,-500.0,0.00013698,2]
[334031331,1722695439455,-500.0,0.00013698,2]
[334031332,1722695439465,-500.0,0.00013698,2]
[334031333,1722695439474,-500.0,0.00013698,2]
[334031334,1722695439485,-500.0,0.00013698,2]
[334031335,1722695439496,-500.0,0.00013698,2]
[334031336,1722695439505,-500.0,0.00013698,2]
[334031337,1722695439514,-500.0,0.00013698,2]
[334031338,1722695439524,-671.03,0.00013698,2]
[334031339,1722695439534,-500.0,0.00013698,2]
[334031340,1722695439543,-500.0,0.00013698,2]
[334031341,1722695439554,-712.13,0.00013698,2]
[334031342,1722695439564,-500.0,0.00013698,2]
[334031343,1722695439575,-1011.03,0.00013698,2]
[334031344,1722695439585,-500.0,0.00013698,2]
[334031345,1722695439597,-500.0,0.00013698,2]
[334031346,1722695439608,-674.42,0.00013698,2]
[334031347,1722695439619,-500.0,0.00013698,2]
[334031348,1722695439629,-500.0,0.00013698,2]
[334031349,1722695439639,-696.75,0.00013698,2]
[334031350,1722695439648,-5038.53,0.00013698,2]
[334031351,1722695439658,-1785.46,0.00013698,2]
[334031352,1722695439668,-1514.9,0.00013698,2]
[334031353,1722695439678,-500.0,0.00013698,2]
[334031354,1722695439687,-500.0,0.00013698,2]
[334031355,1722695439697,-500.0,0.00013698,2]
[334031356,1722695439804,-2366.47938968,0.00013698,2]
[334031357,1722695439821,-6109.19,0.00013698,2]
[334031358,1722695439830,-1497.56,0.00013698,2]
[334031359,1722695439839,-500.0,0.00013698,2]
[334031360,1722695439848,-500.0,0.00013698,2]
[334031361,1722695439858,-1930.2,0.00013698,2]
[334031362,1722695439867,-500.0,0.00013698,2]
[334031363,1722695439877,-500.0,0.00013698,2]
[334031364,1722695439886,-500.0,0.00013698,2]
[334031365,1722695439896,-937.07,0.00013698,2]
[334031366,1722695439905,-500.0,0.00013698,2]
[334031367,1722695439916,-674.55,0.00013698,2]
[334031368,1722695439926,-500.0,0.00013698,2]
[334031369,1722695439937,-1503.13,0.00013698,2]
[334031370,1722695439949,-500.0,0.00013698,2]
[334031371,1722695439959,-500.0,0.00013698,2]
[334031372,1722695439971,-500.0,0.00013698,2]
[334031373,1722695439980,-1366.28,0.00013698,2]
[334031374,1722695439991,-537.63,0.00013698,2]
[334031375,1722695440002,-500.0,0.00013698,2]
[334031376,1722695440014,-500.0,0.00013698,2]
[334031377,1722695440023,-794.87,0.00013698,2]
[334031378,1722695440033,-500.0,0.00013698,2]
[334031379,1722695440043,-500.0,0.00013698,2]
[334031380,1722695440054,-500.0,0.00013698,2]
[334031381,1722695440065,-228.79232837,0.00013698,2]
[334031382,1722695440075,-618.23,0.00013698,2]
[334031383,1722695440085,-4637.7,0.00013698,2]
[334031384,1722695440095,-500.0,0.00013698,2]
[334031385,1722695440107,-1828.88,0.00013698,2]
[334031386,1722695440116,-500.0,0.00013698,2]
[334031387,1722695440125,-500.0,0.00013698,2]
[334031388,1722695440135,-3081.6,0.00013698,2]
[334031389,1722695440144,-630.97,0.00013698,2]
[334031390,1722695440154,-1202.87,0.00013698,2]
[334031391,1722695440164,-500.0,0.00013698,2]
[334031392,1722695440173,-592.37,0.00013698,2]
[334031393,1722695440182,-500.0,0.00013698,2]
[334031394,1722695440191,-500.0,0.00013698,2]
[334031395,1722695440203,-589.61,0.00013698,2]
[334031396,1722695440212,-712.8,0.00013698,2]
[334031397,1722695440222,-500.0,0.00013698,2]
[334031398,1722695440232,-718.32,0.00013698,2]
[334031400,1722695440242,-1113.52,0.00013698,2]
[334031401,1722695440252,-634.01,0.00013698,2]
[334031402,1722695440261,-500.0,0.00013698,2]
[334031404,1722695440271,-762.77,0.00013698,2]
[334031405,1722695440281,-500.0,0.00013698,2]
[334031406,1722695440291,-500.0,0.00013698,2]
[334031407,1722695440300,-500.0,0.00013698,2]
[334031408,1722695440310,-1667.52,0.00013698,2]
[334031409,1722695440320,-810.73,0.00013698,2]
[334031410,1722695440333,-769.51,0.00013698,2]
[334031411,1722695440343,-882.19,0.00013698,2]
[334031412,1722695440352,-500.0,0.00013698,2]
[334031413,1722695440363,-1190.54,0.00013698,2]
[334031414,1722695440372,-6510.32032038,0.00013872,2]
[334031415,1722695440382,-19393.0185003,0.00013952,2]
[334031416,1722695440392,-19393.0185003,0.00013962,2]
[334031417,1722695440404,-500.0,0.00013971,2]
[334031418,1722695440415,-500.0,0.00013971,2]
[334031419,1722695440424,-500.0,0.00013972,2]
[334031420,1722695440435,-598.39,0.00013972,2]
[334031421,1722695440446,-500.0,0.00013972,2]
[334031422,1722695440456,-500.0,0.00013972,2]
[334031423,1722695440466,-1162.33,0.00013972,2]
[334031424,1722695440476,-500.0,0.00013972,2]
[334031425,1722695440486,-500.0,0.00013972,2]
[334031427,1722695440496,-500.0,0.00013972,2]
[334031428,1722695440506,-500.0,0.00013972,2]
[334031429,1722695440516,-640.71948204,0.00013972,2]
[334031431,1722695440525,-500.0,0.00013972,2]
[334031432,1722695440535,-500.0,0.00013972,2]
[334031433,1722695440544,-500.0,0.00013972,2]
[334031434,1722695440554,-500.0,0.00013972,2]
[334031435,1722695440563,-671.03,0.00013972,2]
[334031436,1722695440573,-419.49,0.00013972,2]
[334031437,1722695440582,-500.0,0.00013972,2]
[334031438,1722695440591,-712.13,0.00013972,2]
[334031439,1722695440601,-1011.03,0.00013972,2]
[334031440,1722695440610,-500.0,0.00013972,2]
[334031441,1722695440620,-500.0,0.00013972,2]
[334031442,1722695440629,-674.42,0.00013972,2]
[334031443,1722695440638,-500.0,0.00013972,2]
[334031445,1722695440648,-500.0,0.00013972,2]
[334031446,1722695440658,-696.75,0.00013972,2]
[334031447,1722695440667,-5038.53,0.00013972,2]
[334031448,1722695440676,-1785.46,0.00013972,2]
[334031449,1722695440686,-1514.9,0.00013972,2]
[334031450,1722695440696,-500.0,0.00013972,2]
[334031451,1722695440705,-500.0,0.00013972,2]
[334031452,1722695440715,-500.0,0.00013972,2]
[334031453,1722695440724,-6109.19,0.00013972,2]
[334031454,1722695440734,-1497.56,0.00013972,2]
[334031455,1722695440743,-500.0,0.00013972,2]
[334031456,1722695440752,-500.0,0.00013972,2]
[334031457,1722695440761,-1930.2,0.00013972,2]
[334031458,1722695440771,-500.0,0.00013972,2]
[334031459,1722695440780,-500.0,0.00013972,2]
[334031460,1722695440790,-500.0,0.00013972,2]
[334031461,1722695440799,-937.07,0.00013972,2]
[334031462,1722695440808,-500.0,0.00013972,2]
[334031463,1722695440817,-674.55,0.00013972,2]
[334031464,1722695440826,-500.0,0.00013972,2]
[334031465,1722695440836,-1503.13,0.00013972,2]
[334031466,1722695440845,-500.0,0.00013972,2]
[334031467,1722695440855,-500.0,0.00013972,2]
[334031468,1722695440864,-500.0,0.00013972,2]
[334031469,1722695440873,-1366.28,0.00013972,2]
[334031470,1722695440882,-500.0,0.00013972,2]
[334031472,1722695440892,-537.63,0.00013972,2]
[334031474,1722695440901,-500.0,0.00013972,2]
[334031475,1722695440911,-794.87,0.00013972,2]
[334031476,1722695440920,-500.0,0.00013972,2]
[334031477,1722695440930,-500.0,0.00013972,2]
[334031478,1722695440939,-618.23,0.00013972,2]
[334031479,1722695440949,-4637.7,0.00013972,2]
[334031480,1722695440958,-500.0,0.00013972,2]
[334031481,1722695440968,-1828.88,0.00013972,2]
[334031482,1722695440977,-577.96555564,0.00013972,2]
[334031483,1722695440986,-500.0,0.00013972,2]
[334031484,1722695440995,-3081.6,0.00013972,2]
[334031485,1722695441004,-630.97,0.00013972,2]
[334031486,1722695441013,-1202.87,0.00013972,2]
[334031488,1722695441023,-500.0,0.00013972,2]
[334031490,1722695441032,-592.37,0.00013972,2]
[334031491,1722695441041,-351.8112578,0.00013972,2]
[334031493,1722695441050,-500.0,0.00013972,2]
[334031495,1722695441059,-589.61,0.00013972,2]
[334031496,1722695441068,-712.8,0.00013972,2]
[334031498,1722695441078,-500.0,0.00013972,2]
[334031500,1722695441087,-718.32,0.00013972,2]
[334031502,1722695441097,-1113.52,0.00013972,2]
[334031503,1722695441106,-634.01,0.00013972,2]
[334031505,1722695441115,-500.0,0.00013972,2]
[334031507,1722695441124,-762.77,0.00013972,2]
[334031509,1722695441134,-500.0,0.00013972,2]
[334031511,1722695441143,-500.0,0.00013972,2]
[334031512,1722695441153,-500.0,0.00013972,2]
[334031513,1722695441162,-1667.52,0.00013972,2]
[334031514,1722695441171,-810.73,0.00013972,2]
[334031515,1722695441180,-769.51,0.00013972,2]
[334031516,1722695441189,-882.19,0.00013972,2]
[334031517,1722695441199,-500.0,0.00013972,2]
[334031518,1722695441209,-1190.54,0.00013972,2]
[334031519,1722695441218,-1410.0,0.00014218,2]
[334031520,1722695441227,-150.0,0.00014218,2]
[334031521,1722695441237,-287.914576,0.00014219,2]
[334031522,1722695441247,-19393.0185003,0.00014225,2]
[334031523,1722695441256,-500.0,0.00014235,2]
[334031524,1722695441265,-38786.0370005,0.00014236,2]
[334031525,1722695441274,-500.0,0.00014245,2]
[334031526,1722695441284,-214.41777576,0.00014245,2]
[334031527,1722695441293,-500.0,0.00014245,2]
[334031528,1722695441302,-204.81771448,0.00014245,2]
[334031529,1722695441311,-500.0,0.00014245,2]
[334031530,1722695441321,-500.0,0.00014245,2]
[334031531,1722695441337,-284.49447605,0.00014245,2]
[334031532,1722695441346,-500.0,0.00014245,2]
[334031533,1722695441355,-500.0,0.00014245,2]
[334031534,1722695441364,-500.0,0.00014245,2]
[334031535,1722695441374,-500.0,0.00014245,2]
[334031536,1722695441384,-500.0,0.00014245,2]
[334031537,1722695441393,-500.0,0.00014245,2]
[334031538,1722695441405,-500.0,0.00014245,2]
[334031539,1722695441414,-500.0,0.00014245,2]
[334031540,1722695441424,-500.0,0.00014245,2]
[334031541,1722695441433,-500.0,0.00014245,2]
[334031542,1722695441442,-500.0,0.00014246,2]
[334031543,1722695441461,-598.39,0.00014246,2]
[334031544,1722695441471,-500.0,0.00014246,2]
[334031545,1722695441480,-500.0,0.00014246,2]
[334031546,1722695441489,-1162.33,0.00014246,2]
[334031547,1722695441499,-500.0,0.00014246,2]
[334031548,1722695441508,-500.0,0.00014246,2]
[334031549,1722695441518,-500.0,0.00014246,2]
[334031550,1722695441527,-500.0,0.00014246,2]
[334031551,1722695441537,-500.0,0.00014246,2]
[334031552,1722695441546,-184.73005157,0.00014246,2]
[334031553,1722695441556,-500.0,0.00014246,2]
[334031554,1722695441566,-500.0,0.00014246,2]
[334031555,1722695441575,-671.03,0.00014246,2]
[334031556,1722695441584,-500.0,0.00014246,2]
[334031557,1722695441594,-712.13,0.00014246,2]
[334031558,1722695441604,-1011.03,0.00014246,2]
[334031559,1722695441614,-500.0,0.00014246,2]
[334031560,1722695441623,-500.0,0.00014246,2]
[334031561,1722695441632,-674.42,0.00014246,2]
[334031562,1722695441641,-500.0,0.00014246,2]
[334031563,1722695441650,-500.0,0.00014246,2]
[334031564,1722695441660,-696.75,0.00014246,2]
[334031565,1722695441670,-5038.53,0.00014246,2]
[334031566,1722695441679,-1785.46,0.00014246,2]
[334031567,1722695441689,-1514.9,0.00014246,2]
[334031568,1722695441699,-500.0,0.00014246,2]
[334031569,1722695441708,-500.0,0.00014246,2]
[334031570,1722695441717,-500.0,0.00014246,2]
[334031571,1722695441726,-6109.19,0.00014246,2]